Cogmind - Beta 16 @@@ ROGUE MODE // 2026.02.03 @ 19:53:13 Player: Rocket Result: Self-destructed Performance ------------- Evolutions (1) 500 Regions Visited (3) 600 Robots Destroyed (43) 215 Value Destroyed (774) 774 Prototype IDs (1) 20 Alien Tech Used (0) 0 Bonus (8) 8 TOTAL SCORE: 2117 Bonus ------- High Alert Combat Kills 8 Cogmind --------- Core Integrity 268/400 Matter 234/300 Energy 42/100 System Corruption 7% Temperature Cool (0) Movement Hovering (120) Ox1 Location -9/Mines Parts ------- > --- POWER (1) -------- (None) > --- PROPULSION (2) --- Improved Hover Unit > --- UTILITY (3) ------ Small Storage Unit Sensor Array Hacking Suite > --- WEAPON (3) ------- EM Pulse Gun EMP Blaster > --- INVENTORY (8) ---- Hover Unit High-capacity Battery (250) Heavy EM Pulse Gun Grenade Launcher Heavy Hammer Heavy Hammer Peak State ------------ > --- POWER ------------ Light Nuclear Core > --- PROPULSION ------- Improved Hover Unit Improved Hover Unit > --- UTILITY ---------- Heat Sink Small Storage Unit Hacking Suite > --- WEAPON ----------- EM Shotgun Improved Medium Laser EMP Blaster > --- INVENTORY -------- Hover Unit Improved Hover Unit Improved Hover Unit High-capacity Battery EM Pulse Gun EM Pulse Gun EM Pulse Gun Grenade Launcher [Rating: 20] Favorites ----------- Power Light Ion Engine Engine Light Ion Engine Power Core Light Nuclear Core Propulsion Improved Hover Unit Treads Light Treads Leg Aluminum Leg Hover Unit Improved Hover Unit Utility Small Storage Unit Device Sensor Array Storage Small Storage Unit Processor Targeting Computer Hackware Hacking Suite Weapon EM Pulse Gun Energy Gun EM Pulse Gun Ballistic Gun Light Assault Rifle Launcher EMP Blaster Impact Weapon Heavy Hammer Build | -11 -10 -9 -9 ------- Run | Yrd Mat Mat Min Slots Evolved 2 | . . 2 . Power . | . . . . Propulsion . | . . . . Utility 1 | . . 1 . Weapon 1 | . . 1 . Parts Attached 32 | 9 5 17 1 Power 2 | 1 . 1 . Engine 1 | 1 . . . Core 1 | . . 1 . Reactor . | . . . . Propulsion 9 | 4 . 5 . Treads 2 | 2 . . . Leg 2 | 2 . . . Wheel . | . . . . Hover 5 | . . 5 . Flight . | . . . . Utility 5 | 1 1 3 . Device 2 | . . 2 . Storage 1 | 1 . . . Processor 1 | . 1 . . Hackware 1 | . . 1 . Protection . | . . . . Artifact . | . . . . Weapon 16 | 3 4 8 1 Energy Gun 12 | 3 3 5 1 Energy Cannon . | . . . . Ballistic Gun 1 | . 1 . . Ballistic Cannon . | . . . . Launcher 1 | . . 1 . Special Weapon . | . . . . Impact Weapon 2 | . . 2 . Slashing Weapon . | . . . . Piercing Weapon . | . . . . Special Melee Weapon . | . . . . Unidentified Prototypes 1 | . . 1 . Corrupted Parts 2 | . . 2 . System Corruption 6 | . . 6 . Parts Lost 6 | . . 4 2 Power 1 | . . . 1 Propulsion 3 | . . 2 1 Utility . | . . . . Weapon 2 | . . 2 . Highest Loss Streak 4 | . . 4 2 To Critical Strikes . | . . . . Average Backups 5 | . 2 7 6 Power . | . . . . Propulsion 1 | . . 2 1 Utility . | . . . 1 Weapon 3 | . 1 4 4 Tool/Special . | . . . . Unused Backups 5 | . . 3 2 Power . | . . . . Propulsion 1 | . . 1 . Utility 1 | . . . 1 Weapon 3 | . . 2 1 Tool/Special . | . . . . Average Slot Usage (%) 89 | . 95 89 69 Engine 5 | . 14 3 . Core 5 | . . 7 3 Leg 8 | . 28 3 . Hover 14 | . . 18 16 Device 4 | . . 4 11 Storage 11 | . 14 11 11 Processor 4 | . 9 3 . Hackware 8 | . . 10 11 Energy Gun 19 | . 27 17 5 Launcher 4 | . . 5 11 Impact Weapon 1 | . . 2 . Peak Build Rating 20 | 6 7 20 15 Average Rating 11 | 4 6 14 12 On Entrance 7 | . 6 7 15 Avg Prop Armor Cover (%) 5 | . . 5 . Naked Turns . | . . . . Heaviest Build 21 | 11 12 21 15 Greatest Support 40 | 40 20 20 16 Greatest Overweight (x) 1 | . . 1 1 Average Overweight (x) . | . . . . Largest Inventory Capacity 8 | 8 8 8 8 Average Capacity 7 | 5 8 8 8 Most Carried 8 | 1 7 8 7 Average Carried 5 | . 2 6 6 Final Capacity 8 | 8 8 8 8 Final Carried 7 | . 7 7 6 Class Distribution -------------------- 65% | Mutant 34% | Gunner Dominant Class ---------------- Mutant | -10/Materials Gunner | -9/Materials Mutant | -9/Mines Resources | -11 -10 -9 -9 ----------- Run | Yrd Mat Mat Min Matter Collected 615 | 225 51 307 32 Remotely . | . . . . Salvage Created 1143 | . 154 930 59 Parts 102 | . 8 84 10 Haulers Intercepted 1 | . . 1 . Recyclers Shooed 1 | . . 1 . Parts Field Recycled . | . . . . Retrieved Matter . | . . . . Parts Self-Destructed . | . . . . Prevented . | . . . . Parts Restored . | . . . . Kills | -11 -10 -9 -9 ------- Run | Yrd Mat Mat Min Combat Hostiles Destroyed 30 | . 5 21 4 Guns 14 | . 5 8 1 AOE 16 | . . 13 3 Classes Destroyed 9 | . 2 7 . Worker 4 | . . 4 . Builder 5 | . . 5 . Hauler 1 | . . 1 . Recycler 1 | . . 1 . Operator 1 | . . 1 . Watcher 1 | . . 1 . Swarmer 16 | . 2 10 4 Grunt 11 | . 3 8 . Sentry 3 | . . 3 . Best Kill Streak 9 | . 2 9 4 Combat Bots Only 4 | . 2 4 4 Max Kills in Single Turn 6 | . 1 6 2 Gunslinging . | . . . . Exploded 3 | . . 3 2 Melee . | . . . . Uniques/NPCs Destroyed . | . . . . Combat | -11 -10 -9 -9 -------- Run | Yrd Mat Mat Min Hostile Shots Fired 99 | . 26 58 15 Missed 38 | . 8 23 7 Hits 61 | . 18 35 8 Projectile 61 | . 18 35 8 Critical Strikes 2 | . 1 1 . Damage Taken 690 | . 172 428 90 Core 181 | . 49 103 29 Absorbed by Shields . | . . . . Core Remaining (%) 90 | 100 80 . . Volleys Fired 64 | 4 16 37 7 Largest 3 | 2 2 3 1 Hottest 120 | 80 80 120 40 Shots Fired 119 | 8 32 72 7 Gun 101 | 8 32 59 2 Cannon . | . . . . Launcher 18 | . . 13 5 Special . | . . . . Kinetic . | . . . . Thermal 24 | 4 20 . . Explosive . | . . . . Electromagnetic 95 | 4 12 72 7 Robot Hit Streak 13 | 3 13 6 1 Robot Miss Streak 5 | 1 5 5 3 Penetration Max . | . . . . Secondary Targets 1 | . . 1 . Max Gunslinging Chain 1 | . . 1 . Shots Hit Robots 60 | 6 19 34 1 Core Hits 54 | . 7 43 4 Critical Kills . | . . . . Critical Parts Destroyed . | . . . . Critical Strikes 2 | . . 2 . Corrupt 2 | . . 2 . Melee Attacks 4 | . . 4 . Impact 4 | . . 4 . Slashing . | . . . . Piercing . | . . . . Sneak Attacks . | . . . . Combat Hostiles . | . . . . Follow-up Attacks . | . . . . Damage Inflicted 2110 | 103 226 1634 147 Guns 654 | 73 226 343 12 Cannons . | . . . . Explosions 1456 | 30 . 1291 135 Melee . | . . . . Ramming . | . . . . Kinetic . | . . . . Thermal 614 | 73 107 379 55 Explosive 378 | . . 378 . Electromagnetic 1118 | 30 119 877 92 Impact . | . . . . Slashing . | . . . . Piercing . | . . . . Highest Corruption 7 | . . 6 7 Average Corruption 6 | . . 5 6 Corruption Purged . | . . . . Corruption Blocked . | . . . . Effects 10 | . . 8 2 Message Errors 2 | . . 2 . Matter Fused 3 | . . 2 1 Heat Flow Errors 1 | . . . 1 Energy Discharges 1 | . . 1 . Data Loss (minor) 2 | . . 2 . Weapon Failures 1 | . . 1 . Overload Shots . | . . . . Overflow Damage 43 | 11 . 28 4 Projectiles . | . . . . Explosions 43 | 11 . 28 4 Melee . | . . . . Knockbacks . | . . . . Impact . | . . . . Kinetic . | . . . . Secondary . | . . . . Self-Inflicted Damage 71 | . . 51 20 Shots 2 | . . 1 1 Rammed . | . . . . Targets Rammed . | . . . . Kicked . | . . . . Crushed . | . . . . Highest Temperature 253 | 36 172 211 253 Average Temperature 80 | 16 71 86 138 Received Heat Transfer 186 | . 60 126 . Siege Activations . | . . . . Martial Activations . | . . . . Shielding Activations . | . . . . Robots Disrupted . | . . . . Combat Hostiles . | . . . . Robots Corrupted . | . . . . Combat Hostiles . | . . . . Parts Fried 1 | . . 1 . Impact Corruptions . | . . . . Robots Melted . | . . . . Combat Hostiles . | . . . . Parts Melted 1 | . 1 . . Heat Transferred 900 | 150 250 400 100 Parts Sabotaged . | . . . . Parts Stolen . | . . . . Parts Stripped . | . . . . Power Chain Reactions 7 | 1 . 5 1 Alert | -11 -10 -9 -9 ------- Run | Yrd Mat Mat Min Maximum Alert Level 2 | . . 2 1 Low Security (%) 70 | 100 100 60 30 Level 1 28 | . . 38 69 Level 2 . | . . 1 . Level 3 . | . . . . Level 4 . | . . . . Level 5 . | . . . . High Security . | . . . . Max Security . | . . . . Peak Influence 463 | . 70 463 239 Initial 177 | . . 16 177 Average 133 | . 28 179 213 Influence Increases 1007 | . 110 805 92 Destroy 0b10 Robot/C 600 | . 100 420 80 Destroy 0b10 Robot/NC 65 | . . 65 . Destroy Leader 124 | . 10 104 10 Disable Machine 15 | . . 15 . Destroy Structure 53 | . . 51 2 Lose Combat Pursuer 150 | . . 150 . Influence Decreases 778 | . 70 390 318 Entered New Map 302 | . . 24 278 Time Decay 416 | . 70 326 20 Lost Part 60 | . . 40 20 Squads Dispatched 5 | . 1 4 . Investigation 1 | . . 1 . Extermination . | . . . . Reinforcement 4 | . 1 3 . Assault . | . . . . Garrison . | . . . . Intercept . | . . . . Searches Triggered . | . . . . Construction Impeded 1 | . . 1 . Haulers Reinforced . | . . . . Active Scanning Responses . | . . . . Cargo Convoy Interrupts . | . . . . Stealth | -11 -10 -9 -9 --------- Run | Yrd Mat Mat Min Distress Signals 3 | . 1 2 . Communications Jammed . | . . . . Distress Signals . | . . . . Times Spotted 43 | . 9 30 4 Peak Tracking Total 6 | . 4 6 4 Tactical Retreats 5 | . . 5 . Traps | -11 -10 -9 -9 ------- Run | Yrd Mat Mat Min Traps Triggered 1 | . . 1 . Indirectly 1 | . . 1 . Trap Hack Attempts . | . . . . Triggered . | . . . . Disarmed . | . . . . Reprogrammed . | . . . . Reused . | . . . . Traps Extracted . | . . . . Installed . | . . . . Triggered . | . . . . Machines | -11 -10 -9 -9 ---------- Run | Yrd Mat Mat Min Machines Disabled 2 | . . 2 . Max in Single Turn 1 | . . 1 . Machines Repaired . | . . . . Machines Dismantled . | . . . . Machines Sabotaged . | . . . . Overloaded Fab Kills . | . . . . Hacking | -11 -10 -9 -9 --------- Run | Yrd Mat Mat Min Machines Accessed 2 | . . 2 . Terminals 1 | . . 1 . Fabricators . | . . . . Repair Stations . | . . . . Recycling Units . | . . . . Scanalyzers 1 | . . 1 . Garrison Access . | . . . . Total Hacks 9 | . . 9 . Successful 6 | . . 6 . Failed 3 | . . 3 . Catastrophic . | . . . . Database Lockouts . | . . . . Manual 3 | . . 3 . Terminals 3 | . . 3 . Fabricators . | . . . . Repair Stations . | . . . . Recycling Units . | . . . . Scanalyzers 6 | . . 6 . Garrison Access . | . . . . Terminal Hacks . | . . . . Fabricator Hacks . | . . . . Repair Station Hacks . | . . . . Recycling Unit Hacks . | . . . . Scanalyzer 6 | . . 6 . Insert Component 2 | . . 2 . Analyze 2 | . . 2 . Retrieve Study 2 | . . 2 . Garrison Access Hacks . | . . . . Unauthorized Hacks . | . . . . Terminals . | . . . . Fabricators . | . . . . Repair Stations . | . . . . Recycling Units . | . . . . Scanalyzers . | . . . . Garrison Access . | . . . . Data Cores Recovered 1 | . . 1 . Used . | . . . . Hacking Detections 2 | . . 2 . Full Trace Events . | . . . . Feedback Events . | . . . . Feedback Blocked . | . . . . Robot Schematics Acquired . | . . . . Robots Built . | . . . . Authchips . | . . . . Time . | . . . . Total Robot Build Rating . | . . . . Part Schematics Acquired 2 | . . 2 . Parts Built . | . . . . Authchips . | . . . . Time . | . . . . Total Part Build Rating . | . . . . Part Studies Acquired 2 | . . 2 . Parts Repaired . | . . . . Time . | . . . . Parts Recycled . | . . . . Recycled Matter . | . . . . Retrieved Matter . | . . . . Retrieved Components . | . . . . Parts Scanalyzed 2 | . . 2 . Part Schematics Acquired 2 | . . 2 . Parts Damaged . | . . . . Bothacking | -11 -10 -9 -9 ------------ Run | Yrd Mat Mat Min Used RIF Installer . | . . . . Robots Hacked . | . . . . Non-combat . | . . . . Combat . | . . . . Robot Hacks Applied . | . . . . Relay Couplers Released . | . . . . Fabnet Peak Effective % . | . . . . Robots Rewired . | . . . . Allies Hacked . | . . . . Hacks Repelled . | . . . . Allies | -11 -10 -9 -9 -------- Run | Yrd Mat Mat Min Total Allies . | . . . . Largest Group . | . . . . Highest-Rated Group . | . . . . Highest-Rated Ally . | . . . . Total Orders . | . . . . Ally Attacks . | . . . . Total Damage . | . . . . Kills . | . . . . Allies Corrupted . | . . . . Allies Melted . | . . . . Intel | -11 -10 -9 -9 ------- Run | Yrd Mat Mat Min Active Infowar (turns) 214 | . . 161 53 Sensors 214 | . . 161 53 Robot Analysis Total . | . . . . Derelict Logs Recovered . | . . . . Drone Launches . | . . . . Drone Recoveries . | . . . . Exploration | -11 -10 -9 -9 ------------- Run | Yrd Mat Mat Min Turns Passed 1101 | 115 206 727 53 Spaces Moved 691 | 57 113 494 27 Core 4 | 4 . . . Treads 29 | 29 . . . Legs 186 | 24 113 49 . Wheels . | . . . . Hover 472 | . . 445 27 Flight . | . . . . Fastest Speed 50 | 50 120 56 56 Average Speed 100 | 135 120 94 70 Slowest Speed 190 | 160 120 190 120 Overloaded Moves . | . . . . Propulsion Burnouts . | . . . . Robots Hopped . | . . . . Potential Cave-ins . | . . . . Cave-ins Triggered . | . . . . Exploration Rate (%) 19 | 4 25 36 12 Regions Visited 3 Branch Regions 1 Pre-discovered Areas . | . . . . Known Exits Taken . | . . . . Unknown Exits Taken 3 | 1 1 1 . Scrap Searched . | . . . . Spaces Dug 4 | . . 4 . Terrain Destroyed 52 | 2 . 48 2 Melee 4 | . . 4 . Projectile . | . . . . AOE 48 | 2 . 44 2 Terrain Rammed . | . . . . Walls Destroyed . | . . . . Machines Disabled . | . . . . Actions | -11 -10 -9 -9 --------- Run | Yrd Mat Mat Min Total 980 | 84 150 692 54 Wait 135 | 7 7 102 19 Move 688 | 56 112 493 27 Hop . | . . . . Pick Up 15 | 1 7 7 . Fast Attach 27 | 10 4 13 . Attach 9 | 1 . 7 1 Detach 5 | . . 5 . Swap 6 | . 1 5 . Drop 27 | 5 3 19 . Fire 64 | 4 16 37 7 Melee 4 | . . 4 . Ram . | . . . . Kick . | . . . . Crush . | . . . . Escape Stasis . | . . . . Rewire . | . . . . Trap . | . . . . Miscellaneous . | . . . . Route ------- -11/Scrapyard -10/Materials (discovered 2 exits: *Mat / [*Min]) -9/Materials -9/Mines History --------- Turn | Location | Event 3 | -11/Scrapyard | Discovered new exit (range 16) 116 | -11/Scrapyard | Entered Materials 117 | -10/Materials | Met a group of wandering Federalists 148 | -10/Materials | Discovered new exit (range 13) 300 | -10/Materials | Discovered new exit (range 11) 305 | -10/Materials | Build established: Mutant 322 | -10/Materials | Entered another Materials area 322 | -9/Materials | Evolved 2 slots: Utility x1, Weapon x1 645 | -9/Materials | Build established: Gunner 695 | -9/Materials | Discovered new exit (range 16) 792 | -9/Materials | Lost 4 parts (2n2w) 985 | -9/Materials | Build established: Mutant 1049 | -9/Materials | Entered Mines 1102 | -9/Mines | Self-destructed Last Messages --------------- 01067_ Destroyed Lgt. Ion Engine. 01067_ S-10 Pest destroyed. 01075_ R-06 Scavenger collects Corrupted Flight Unit. 01078_ Imp. Hover Unit+ destroyed. 01079_ R-06 Scavenger collects Flight Unit. 01082_ R-06 Scavenger collects Lgt. Assault Rifle. 01083_ System corrupted: Heat flow error (+260). 01083_ S-10 Pest destroyed. 01085_ R-06 Scavenger collects Lgt. Assault Rifle. 01085_ R-06 Scavenger collects Corrupted Lgt. Assault Rifle. 01086_ Acquired 13 matter. 01087_ Acquired 16 matter. 01089_ Acquired 3 matter. 01089_ R-06 Scavenger collects Corrupted Lgt. Ion Engine. 01092_ K-01 Serf collects debris. Map ----- +----------------------------------------------------+ | ??????????????? #????????????????????????? | | ???????????????# #????????????????????????? | | ???????????????# #????????????????????????? | | ???????????????# #?????###????????????????? | | ???????????????# ##???# ##???????????????? | | ???????????????# ##?? #???????????????? | | ???????????????# ### #???????????????? | | ???????????????# #????????????????? | | ???????????????# ##????????????????? | | ???????????????# ##?????????????????? | | ???????????????# ##??????????????????? | | ???????????????# ###???????????????????? | | ???????# ## ##?????????????????????? | | ???????# #??????????????????????? | | ???????# #### #??????????????????????? | | ???????# ????# #??????????????????????? | | ???????#####?????# #??????????????????????? | | ?????????????????# #??????????????????????? | | ?????????????????# #####??????????????????? | | ?????????????????# r #??????????????????? | | ?????????????????# ##?????????????????? | | ??????????????######;#k #?????????????????? | | ????????????### ## ##????????????????? | | ???????????## #????????????????? | | ???????????# #????????????????? | | ???????????# @ % #????????????????? | | ???????????# ##????????????????? | | ???????????# ## ##?????????????????? | | ???????????## #?## ##??????????????????? | | ????????????# ???# #???????????????????? | | ????????????# ????# #???????????????????? | | ????????????# ?????# #???????????????????? | | ???????????# ??????# ##???????????????????? | | ???????????# ???????###????????????????????? | | ???????????#???????????????????????????????? | | ???????????????????????????????????????????? | | ???????????????????????????????????????????? | | ???????????????????????????????????????????? | | ???????????????????????????????????????????? | | ???????????????????????????????????????????? | | ???????????????????????????????????????????? | | ???????????????????????????????????????????? | | ???????????????????????????????????????????? | | ???????????????????????????????????????????? | | | | | | | | | | | | | +----------------------------------------------------+ Best States ------------- Heat Dissipation 38 Energy Generation 14 Energy Capacity 160 Matter Stores 300 Matter Capacity 300 Sight Range 16 Robot Scan Range 14 Terrain Scan Density 10 Evasion (%) 55 Targeting Accuracy 5 Recoil Reduction 2 Offensive Hacking 10 Item Schematics ----------------- Imp. Hover Unit | -9/Materials | Scanalyzed Hover Unit | -9/Materials | Scanalyzed Robot Schematics ------------------ None Fabricated ------------ Nothing Repaired ---------- Nothing Studied --------- Imp. Hover Unit | -9/Materials | Hacked Hover Unit | -9/Materials | Hacked Alien Tech Used ----------------- None Achievements -------------- None Challenges ------------ None Game ------ Seed MetafiberSmartbombMallet Manual? 0 Play Time 00:10:10 Cumulative 79.2 hours Start 2026.01.28 @ 03:51:20 End 2026.02.03 @ 19:53:13 Sessions 3 Manual Loads 0 Difficulty Rogue Special Mode None Game No. 118 Rogue 118 Adventurer 0 Explorer 0 Win Type - Total 0 Types 0/0/0/0/0/0/0/0/0/0 Lore% 17 Gallery% 35 Achievement% 26 Wizard Run 0 Options --------- Layout 1 ASCII 0 Keyboard 0 Movement Mouse Keybinds 0 Fullscreen 2 Font 24/Smallcaps Map View 50x35 Zoom Use 40% Tactical HUD 1 Map Filters NONE Filters NONE Steam 1 RUN: 99887c3b-df6b-4363-9eb3-bfb7437d0cd2